bitfinex-derivatives/quotes_BNBF0:USTF0_20251225
["timestamp","ask_amount","ask_price","bid_price","bid_amount"]
[1766703213193,0.880232,836.59,835.39,0.89193819]
[1766703214293,0.880232,836.59,835.4,0.89193819]
[1766703215296,0.880232,836.58,835.41,0.89193819]
[1766703216196,0.880232,836.57,835.42,0.89193819]
[1766703217202,0.880232,836.55,835.43,0.89193819]
[1766703217601,0.880232,836.56,835.43,0.89193819]
[1766703217898,0.880232,836.55,835.43,0.89193819]
[1766703218201,0.880232,836.54,835.44,0.89193819]
[1766703219201,0.880232,836.53,835.46,0.89193819]
[1766703220101,0.880232,836.54,835.47,0.89193819]
[1766703220297,0.880232,836.54,835.5,0.89193819]
[1766703222198,0.880232,836.53,835.51,0.89193819]
[1766703224203,0.880232,836.52,835.52,0.89193819]
[1766703226304,0.880232,836.51,835.53,0.89193819]
[1766703228807,0.880232,836.45,835.48,0.89193819]
[1766703229106,0.880232,836.42,835.45,0.89193819]
[1766703230105,0.880232,836.42,835.46,0.89193819]
[1766703230811,0.880232,836.42,835.47,0.89193819]
[1766703231207,0.880232,836.42,835.46,0.89193819]
[1766703231612,0.880232,836.42,835.47,0.89193819]
[1766703232408,0.880232,836.42,835.46,0.89193819]
[1766703232613,0.880232,836.41,835.46,0.89193819]
[1766703233011,0.880232,836.42,835.47,0.89193819]
[1766703235312,0.880232,836.39,835.44,0.89193819]
[1766703236914,0.880232,836.42,835.48,0.89193819]
[1766703237110,0.880232,836.43,835.48,0.89193819]
[1766703237310,0.880232,836.45,835.51,0.89193819]
[1766703237511,0.905,836.42,835.51,0.89193819]
[1766703237915,0.905,836.42,835.53,0.89193819]
[1766703238115,0.905,836.42,835.68,0.89193819]
[1766703238315,0.905,836.42,835.71,0.89193819]
[1766703239114,0.905,836.42,835.7,0.89193819]
[1766703239315,0.905,836.42,835.71,0.89193819]
[1766703240516,0.905,836.42,835.74,0.89193819]
[1766703240717,0.905,836.42,835.75,0.89193819]
[1766703240917,0.905,836.42,835.79,0.89193819]
[1766703241315,0.905,836.42,835.78,0.89193819]
[1766703241512,0.905,836.42,835.8,0.89193819]
[1766703242216,0.905,836.42,835.78,0.89193819]
[1766703242518,0.905,836.42,835.8,0.89193819]
[1766703243121,0.905,836.42,835.76,0.89193819]
[1766703243419,0.905,836.42,835.72,0.89193819]
[1766703244122,0.905,836.42,835.71,0.89193819]
[1766703244624,0.905,836.42,835.74,0.89193819]
[1766703246025,0.905,836.42,835.73,0.89193819]
[1766703249725,0.905,836.42,835.78,0.89193819]
[1766703250130,0.905,836.42,835.75,0.89193819]
[1766703250325,0.905,836.42,835.62,0.89193819]
[1766703250625,0.905,836.42,835.44,0.89193819]
[1766703250924,0.905,836.42,834.56,2.97019491]
[1766703250925,0.905,836.42,835.43,0.89193819]
[1766703252123,0.905,836.42,835.44,0.89193819]
[1766703254530,0.905,836.42,835.43,0.89193819]
[1766703254825,0.905,836.42,835.44,0.89193819]
[1766703255227,0.905,836.42,835.45,0.89193819]
[1766703255824,0.905,836.42,835.42,0.89193819]
[1766703256125,0.905,836.42,835.43,0.89193819]
[1766703260133,0.905,836.42,835.42,0.89193819]
[1766703263432,0.905,836.42,835.52,0.89193819]
[1766703263633,0.905,836.42,835.55,0.89193819]
[1766703264233,0.905,836.42,835.56,0.89193819]
[1766703264838,0.905,836.42,835.55,0.89193819]
[1766703265138,0.905,836.42,835.56,0.89193819]
[1766703268844,0.905,836.42,835.52,0.89193819]
[1766703269144,0.905,836.42,835.53,0.89193819]
[1766703271245,0.905,836.42,835.52,0.89193819]
[1766703271446,0.905,836.42,835.53,0.89193819]
[1766703275142,0.905,836.42,835.54,0.89193819]
[1766703277947,0.905,836.42,835.53,0.89193819]
[1766703278144,0.905,836.42,835.54,0.89193819]
[1766703280146,0.905,836.42,835.55,0.89193819]
[1766703280649,0.880232,836.59,835.55,0.89193819]
[1766703282650,0.20810223,836.45,835.55,0.89193819]
[1766703283054,0.880232,836.6,835.56,0.89193819]
[1766703283254,0.880232,836.64,835.6,0.89193819]
[1766703283455,0.20808979,836.55,835.6,0.89193819]
[1766703283755,0.20808979,836.55,835.62,0.89193819]
[1766703284755,1.278,836.54,835.62,0.89193819]
[1766703286153,1.278,836.54,835.74,0.89193819]
[1766703286851,1.278,836.54,835.77,0.89193819]
[1766703292661,1.278,836.54,835.76,0.89193819]
[1766703293060,1.278,836.54,835.8,0.89193819]
[1766703296165,1.278,836.54,835.79,0.89193819]
[1766703297065,1.278,836.54,835.8,0.89193819]
[1766703297263,1.278,836.54,835.79,0.89193819]
[1766703297466,1.278,836.54,835.8,0.89193819]
[1766703298166,1.278,836.54,835.79,0.89193819]
[1766703300763,1.278,836.54,835.8,0.89193819]
[1766703301364,1.278,836.54,835.93,0.89193819]
[1766703301769,1.278,836.54,835.94,0.89193819]
[1766703302565,1.278,836.54,835.95,0.89193819]
[1766703303069,1.278,836.54,836.01,0.89193819]
[1766703303467,1.278,836.54,835.99,0.89193819]
[1766703303664,1.278,836.54,836.0,0.89193819]
[1766703304468,1.278,836.54,835.99,0.89193819]
[1766703305369,1.278,836.54,835.98,0.89193819]
[1766703306165,1.278,836.54,835.99,0.89193819]
[1766703306366,1.278,836.54,835.98,0.89193819]
[1766703307470,1.278,836.54,835.97,0.89193819]
[1766703307873,1.278,836.54,835.98,0.89193819]
[1766703308473,1.278,836.54,835.97,0.89193819]
[1766703310377,1.278,836.54,835.96,0.89193819]
[1766703314073,1.278,836.54,835.97,0.89193819]
[1766703316077,1.278,836.54,835.95,0.89193819]
[1766703316277,1.278,836.54,835.97,0.89193819]
[1766703316472,1.278,836.54,835.96,0.89193819]
[1766703316974,1.278,836.54,835.84,0.89193819]
[1766703317174,1.278,836.54,835.86,0.89193819]
[1766703319278,1.278,836.54,835.87,0.89193819]
[1766703319478,1.278,836.54,835.84,0.89193819]
[1766703319774,1.278,836.54,835.14,56.27831833]
[1766703319775,1.278,836.54,835.85,0.89193819]
[1766703319974,1.278,836.54,835.84,0.89193819]
[1766703320175,1.278,836.54,835.86,0.89193819]
[1766703320478,1.278,836.54,835.81,0.89193819]
[1766703321078,1.278,836.54,835.82,0.89193819]
[1766703321579,1.278,836.54,835.83,0.89193819]
[1766703322578,1.278,836.54,835.84,0.89193819]
[1766703322775,0.20801267,837.0,835.84,0.89193819]
[1766703324179,1.08824467,837.0,835.85,0.89193819]
[1766703324379,1.08824467,837.0,835.83,8.92249383]
[1766703324380,0.20801267,837.0,835.86,0.89193819]
[1766703324576,0.20801267,837.0,835.83,8.92249383]
[1766703324577,0.20801267,837.0,835.88,0.89193819]
[1766703324779,0.20801267,837.0,835.83,8.92249383]
[1766703325681,1.407,836.99,835.83,8.92249383]
[1766703325874,1.407,836.99,835.91,0.89216972]
[1766703326074,1.407,836.99,835.92,0.89216972]
[1766703327177,1.407,836.99,835.93,0.89216972]
[1766703328180,1.407,836.99,835.94,0.89216972]
[1766703329277,1.407,836.99,835.95,0.89216972]
[1766703329481,1.407,836.99,835.96,0.89216972]
[1766703329981,1.407,836.99,835.97,0.89216972]
[1766703330177,1.407,836.99,835.06,2.97389906]
[1766703330178,1.407,836.99,835.99,0.89216972]
[1766703330378,1.407,836.99,836.01,0.89216972]
[1766703331181,1.407,836.99,836.02,0.89216972]
[1766703331578,1.407,836.99,836.04,0.89216972]
[1766703332382,1.407,836.99,836.07,0.89216972]
[1766703332582,1.407,836.99,836.08,0.89216972]
[1766703334181,1.407,836.99,835.18,2.97389906]
[1766703334182,1.407,836.99,836.09,0.89216972]
[1766703334384,1.407,836.99,836.11,0.89216972]
[1766703335581,1.407,836.99,836.1,0.89216972]
[1766703337181,1.407,836.99,836.11,0.89216972]
[1766703339082,1.407,836.99,836.12,0.89216972]
[1766703340187,1.407,836.99,836.13,0.89216972]
[1766703341184,1.407,836.99,836.14,0.89216972]
[1766703342088,1.407,836.99,836.15,0.89216972]
[1766703343286,1.407,836.99,836.14,0.89216972]
[1766703343486,1.407,836.99,836.05,8.8288582]
[1766703343487,1.407,836.99,836.15,0.89216972]
[1766703344189,1.407,836.99,836.17,0.89216972]
[1766703345190,1.407,836.99,836.15,0.89216972]
[1766703347191,1.407,836.99,836.17,0.89216972]
[1766703348491,1.407,836.99,836.16,0.89216972]
[1766703349487,0.20801267,837.0,836.15,0.89216972]
[1766703352193,0.939,836.99,836.15,0.89216972]
[1766703354495,0.939,836.99,836.19,0.89216972]
[1766703354689,0.939,836.99,836.2,0.89216972]
[1766703354888,0.939,836.99,836.22,0.89216972]
[1766703355394,0.939,836.99,836.23,0.89216972]
[1766703357294,0.939,836.99,836.22,0.89216972]
[1766703357794,0.939,836.99,836.23,0.89216972]
[1766703358093,0.939,836.99,836.24,0.89216972]
[1766703358791,0.939,836.99,836.25,0.89216972]
[1766703359297,0.939,836.99,836.24,0.89216972]
[1766703359495,0.939,836.99,836.25,0.89216972]
[1766703359697,0.939,836.99,836.26,0.89216972]
[1766703359898,0.939,836.99,836.37,0.89216972]
[1766703360093,0.939,836.99,836.41,0.89216972]
[1766703360397,0.939,836.99,836.46,0.89216972]
[1766703361498,0.939,836.99,836.43,0.89216972]
[1766703362297,0.939,836.99,836.42,0.89216972]
[1766703363297,0.939,836.99,836.41,0.89216972]
[1766703364197,0.939,836.99,836.4,0.89216972]
[1766703365297,0.939,836.99,836.39,0.89216972]
[1766703366198,0.939,836.99,836.38,0.89216972]
[1766703366497,0.939,836.99,836.39,0.89216972]
[1766703367194,0.939,836.99,836.38,0.89216972]
[1766703369202,0.939,836.99,836.37,0.89216972]
[1766703369398,0.939,836.99,835.54,0.00867298]
[1766703369399,0.939,836.99,836.38,0.89216972]
[1766703370195,0.939,836.99,836.37,0.89216972]
[1766703374101,0.939,836.99,836.38,0.89216972]
[1766703375900,0.939,836.99,836.48,0.89216972]
[1766703376706,0.939,836.99,836.39,0.89216972]
[1766703377707,0.939,836.99,835.55,0.01251994]
[1766703377708,0.939,836.99,836.4,0.89216972]
[1766703380909,0.939,836.99,836.47,0.89216972]
[1766703382211,0.939,836.99,836.46,0.89216972]
[1766703382410,0.939,836.99,836.47,0.89216972]
[1766703383207,0.939,836.99,836.46,0.89216972]
[1766703390317,0.939,836.99,836.47,0.89216972]
[1766703392617,0.939,836.99,836.48,0.89216972]
[1766703393119,0.22227052,837.48,836.48,0.89216972]
[1766703393318,0.20789648,837.48,836.48,10.02045661]
[1766703394416,0.20789648,837.48,836.49,0.89216972]
[1766703395321,0.20789648,837.48,836.5,0.89216972]
[1766703395721,0.20789648,837.48,836.48,9.12828689]
[1766703397422,1.008,837.47,836.48,9.12828689]
[1766703397718,1.008,837.47,836.43,0.89216972]
[1766703397919,0.88109531,837.43,836.38,0.89216972]
[1766703398120,0.88109531,837.36,836.31,0.89216972]
[1766703398322,0.88109531,837.35,836.32,0.89216972]
[1766703398521,0.88109531,837.3,836.28,0.89216972]
[1766703398921,0.88109531,837.31,836.29,0.89216972]
[1766703399418,0.88109531,837.3,836.3,0.89216972]
[1766703400324,0.88109531,837.29,836.3,0.89216972]
[1766703400624,0.88109531,837.29,836.31,0.89216972]
[1766703401223,0.88109531,837.3,836.31,0.89216972]
[1766703401421,0.88109531,837.29,836.32,0.89216972]
[1766703402222,0.88109531,837.29,836.31,0.89216972]
[1766703402518,0.88109531,837.28,836.32,0.89216972]
[1766703403319,0.88109531,837.27,836.33,0.89216972]
[1766703404120,0.88109531,837.28,836.33,0.89216972]
[1766703404325,0.88109531,837.29,836.35,0.89216972]
[1766703404522,0.88109531,837.29,836.24,8.84549211]
[1766703404523,0.88109531,837.3,836.37,0.89216972]
[1766703404919,0.88368259,837.3,836.37,0.89427552]
[1766703406225,0.88368259,837.3,836.36,0.89427552]
[1766703408825,0.88368259,837.32,836.37,0.89427552]
[1766703411028,0.88368259,837.33,836.38,0.89427552]
[1766703411728,0.88368259,837.32,836.37,0.89427552]
[1766703413332,0.88368259,837.32,836.36,0.89427552]
[1766703416136,0.88368259,837.33,836.36,0.89427552]
[1766703416337,0.88368259,837.33,836.21,1.18955962]
[1766703416338,0.88368259,837.31,836.34,0.89427552]
[1766703417438,1.008,837.47,835.5,0.01117029]
[1766703417439,0.88368259,837.3,836.33,0.89427552]
[1766703417639,0.88368259,837.29,836.32,0.89427552]
[1766703417835,0.88368259,837.24,836.27,0.89427552]
[1766703419139,0.88368259,837.25,836.26,0.89427552]
[1766703420335,0.88368259,837.24,836.25,0.89427552]
[1766703422241,0.88368259,837.24,836.24,0.89427552]
[1766703424139,0.88368259,837.25,836.24,0.89427552]
[1766703424638,0.88368259,837.26,836.25,0.89427552]
[1766703424939,0.88368259,837.27,836.26,0.89427552]
[1766703425542,0.88368259,837.27,836.26,9.81586321]
[1766703427145,0.20789648,837.48,836.28,0.89427552]
[1766703427146,0.88368259,837.29,836.28,0.89427552]
[1766703427546,0.88368259,837.28,836.28,0.89427552]
[1766703428946,0.88368259,837.33,836.32,0.89427552]
[1766703429146,0.88368259,837.32,836.33,0.89427552]
[1766703430744,1.228,837.31,836.33,0.89427552]
[1766703431250,2.11168259,837.31,836.33,0.89427552]
[1766703432251,2.11168259,837.31,836.34,0.89427552]
[1766703432949,1.228,837.31,836.35,0.89427552]
[1766703433148,1.228,837.31,836.36,0.89427552]
[1766703434351,2.11168259,837.31,836.36,0.89427552]
[1766703434750,0.88368259,837.3,836.35,0.89427552]
[1766703435248,0.88368259,837.29,836.35,0.89427552]
[1766703436352,0.88368259,837.28,836.36,0.89427552]
[1766703437354,0.88368259,837.28,836.37,0.89427552]
[1766703438353,0.88368259,837.27,836.38,0.89427552]
[1766703439260,0.88368259,837.26,836.39,0.89427552]
[1766703440257,0.88368259,837.26,836.28,8.97886007]
[1766703440258,0.88368259,837.24,836.4,0.89427552]
[1766703441360,0.88368259,837.21,836.38,0.89427552]
[1766703442458,1.228,837.31,836.39,0.89427552]
[1766703442459,0.88368259,837.2,836.39,0.89427552]
[1766703442854,0.88368259,837.19,836.38,0.89427552]
[1766703443055,0.88368259,837.16,836.35,0.89427552]
[1766703443255,0.88368259,837.16,836.27,9.06675963]
[1766703443256,0.88368259,837.15,836.33,0.89427552]
[1766703443556,0.88368259,837.14,836.33,0.89427552]
[1766703443760,0.88368259,837.09,836.27,9.96103515]
[1766703444760,0.88368259,837.09,836.27,9.06675963]
[1766703444956,0.88368259,837.08,836.27,9.06675963]
[1766703445160,0.88368259,837.09,836.27,9.06675963]
[1766703445359,0.88368259,837.06,836.27,9.06675963]
[1766703446057,0.88368259,837.06,836.22,0.89427552]
[1766703446357,0.88368259,837.07,836.21,0.89427552]
[1766703447161,0.88368259,837.07,836.2,0.89427552]
[1766703448157,0.88368259,837.08,836.2,0.89427552]
[1766703449265,0.88368259,837.08,836.19,0.89427552]
[1766703450159,0.88368259,837.09,836.19,0.89427552]
[1766703451160,0.88368259,837.09,836.18,0.89427552]
[1766703451559,0.973,837.08,836.18,0.89427552]
[1766703455166,0.973,837.08,836.17,0.89427552]
[1766703468675,0.973,837.08,836.18,0.89427552]
[1766703468875,0.973,837.08,836.22,0.89427552]
[1766703469080,0.973,837.08,836.26,0.89427552]
[1766703475584,0.973,837.08,836.28,0.89427552]
[1766703478390,0.973,837.08,836.27,0.89427552]
[1766703479190,0.973,837.08,836.28,0.89427552]
[1766703480191,0.973,837.08,836.29,0.89427552]
[1766703483389,0.973,837.08,836.3,0.89427552]
[1766703483895,0.973,837.08,836.3,9.94572678]
[1766703484095,0.973,837.08,836.31,0.89427552]
[1766703486293,0.973,837.08,836.32,0.89427552]
[1766703486896,0.973,837.08,836.33,0.89427552]
[1766703487094,0.973,837.08,836.38,0.89427552]
[1766703488198,0.973,837.08,836.37,0.89427552]
[1766703491299,0.973,837.08,836.36,0.89427552]
[1766703492003,0.973,837.08,836.38,0.89427552]
[1766703493205,0.973,837.08,836.37,0.89427552]
[1766703503314,0.973,837.08,836.44,0.89427552]
[1766703503511,0.973,837.08,836.44,10.0456338]
[1766703503814,0.973,837.08,836.47,0.89427552]
[1766703504214,0.973,837.08,836.53,0.89427552]
[1766703505215,0.973,837.08,836.52,0.89427552]
[1766703507317,0.973,837.08,836.51,0.89427552]
[1766703507516,0.2079089,837.35,836.51,0.89427552]
[1766703510221,0.2079089,837.35,836.5,0.89427552]
[1766703510818,0.892,837.34,836.5,0.89427552]
[1766703511121,0.892,837.34,836.51,0.89427552]
[1766703511320,0.892,837.34,836.5,0.89427552]
[1766703513224,0.892,837.34,836.53,0.89427552]
[1766703513526,0.892,837.34,836.55,0.89427552]
[1766703516227,0.892,837.34,836.54,0.89427552]
[1766703518429,0.892,837.34,836.55,0.89427552]
[1766703518630,0.892,837.34,836.68,0.89427552]
[1766703518926,0.892,837.34,836.68,9.83013115]
[1766703519428,0.892,837.34,836.68,8.93585563]
[1766703522326,0.892,837.34,836.65,0.89427552]
[1766703524233,0.892,837.34,836.64,0.89427552]
[1766703527230,0.892,837.34,836.63,0.89427552]
[1766703530042,0.892,837.34,836.65,0.89427552]
[1766703530339,0.892,837.34,836.64,0.89427552]
[1766703530742,0.892,837.34,836.66,0.89427552]
[1766703531644,0.892,837.34,836.67,0.89427552]
[1766703532546,0.892,837.34,836.67,9.70126459]
[1766703534549,0.892,837.34,836.68,0.89427552]
[1766703535044,0.892,837.34,836.71,0.89427552]
[1766703535349,0.892,837.34,836.76,0.89427552]
[1766703535749,0.892,837.34,836.78,0.89427552]
[1766703536148,0.892,837.34,836.82,0.89427552]
[1766703536548,0.892,837.34,836.85,0.89427552]
[1766703537052,0.892,837.34,836.92,0.89427552]
[1766703537247,0.892,837.34,836.91,0.89427552]
[1766703537444,0.892,837.34,836.92,0.89427552]
[1766703537746,0.892,837.34,836.95,0.89427552]
[1766703538248,0.892,837.34,836.11,0.01457374]
[1766703538249,0.892,837.34,836.94,0.89427552]
[1766703539248,0.892,837.34,836.93,0.89427552]
[1766703540249,0.892,837.34,836.09,0.01062314]
[1766703540250,0.892,837.34,836.94,0.89427552]
[1766703540549,0.892,837.34,837.02,0.89427552]
[1766703540745,0.892,837.34,837.02,9.97538584]
[1766703540944,0.892,837.34,837.03,0.89427552]
[1766703541248,0.892,837.34,837.07,0.89427552]
[1766703541845,0.892,837.34,837.09,0.89427552]
[1766703542249,0.892,837.34,837.07,0.89427552]
[1766703543243,0.892,837.34,837.14,0.89427552]
[1766703544050,0.01417019,837.9,837.11,0.89427552]
[1766703544250,0.20774507,838.19,837.11,0.89427552]
[1766703545247,0.20774507,838.19,837.09,0.89427552]
[1766703545448,0.20774507,838.19,837.1,0.89427552]
[1766703546352,0.20774507,838.19,837.09,0.89427552]
[1766703547154,0.20774507,838.19,837.07,0.89427552]
[1766703547352,0.20774507,838.19,837.08,0.89427552]
[1766703547559,0.20774507,838.19,837.08,0.88733091]
[1766703547853,0.20774507,838.19,837.08,9.86616814]
[1766703548054,0.867,838.18,837.08,9.86616814]
[1766703548254,0.867,838.18,837.08,8.97883723]
[1766703549454,1.7473777,838.18,837.08,8.97883723]
[1766703550454,0.867,838.18,837.08,8.97883723]
[1766703551355,0.867,838.18,836.83,0.88733091]
[1766703552351,0.867,838.18,836.86,0.88733091]
[1766703552552,0.867,838.18,836.89,0.88733091]
[1766703552856,0.867,838.18,836.96,0.88733091]
[1766703554056,0.867,838.18,836.95,0.88733091]
[1766703554251,0.867,838.18,836.96,0.88733091]
[1766703555153,0.867,838.18,836.97,0.88733091]
[1766703556058,0.867,838.18,836.96,0.88733091]
[1766703556255,0.867,838.18,836.97,0.88733091]
[1766703558358,0.867,838.18,836.98,0.88733091]
[1766703559560,0.867,838.18,836.97,0.88733091]
[1766703559959,0.867,838.18,836.98,0.88733091]
[1766703560158,0.867,838.18,836.99,0.88733091]
[1766703562262,0.867,838.18,837.0,0.88733091]
[1766703563163,0.867,838.18,837.01,0.88733091]
[1766703563461,0.867,838.18,837.01,9.71327286]
[1766703565062,0.867,838.18,837.02,0.88733091]
[1766703567058,0.20774507,838.19,837.02,0.88733091]
[1766703567256,0.20774507,838.19,837.03,0.88733091]
[1766703568061,0.20774507,838.19,837.01,0.88733091]
[1766703568358,0.8803777,838.16,836.91,0.88733091]
[1766703568557,0.8803777,838.14,836.9,0.88733091]
[1766703568755,0.8803777,838.14,835.99,2.97389906]
[1766703568756,0.8803777,838.08,836.84,0.88733091]
[1766703568958,0.8803777,838.05,836.81,0.88733091]
[1766703569158,0.20774507,838.19,836.79,0.88733091]
[1766703569159,0.8803777,838.01,836.79,0.88733091]
[1766703569356,0.8803777,837.95,836.72,0.88733091]
[1766703569561,0.8803777,837.69,836.46,0.88733091]
[1766703569864,0.8803777,837.68,836.45,0.88733091]
[1766703570062,0.8803777,837.71,836.48,0.88733091]
[1766703570360,0.8803777,837.71,836.33,1.18955962]
[1766703570361,0.8803777,837.73,836.49,0.88733091]
[1766703570858,1.351,837.72,836.49,0.88733091]
[1766703571258,1.351,837.72,836.48,0.88733091]
[1766703571458,1.351,837.72,836.49,0.88733091]
[1766703571862,1.351,837.72,836.5,0.88733091]
[1766703573058,1.351,837.72,836.49,0.88733091]
[1766703573261,1.351,837.72,836.5,0.88733091]
[1766703574162,1.351,837.72,836.49,0.88733091]
[1766703574364,1.351,837.72,836.52,0.88733091]
[1766703574564,1.351,837.72,836.55,0.88733091]
[1766703574764,1.351,837.72,836.55,9.93281393]
[1766703577063,1.351,837.72,836.55,9.04548302]
[1766703577267,1.351,837.72,836.59,0.88733091]
[1766703577566,1.351,837.72,836.6,0.88733091]
[1766703581170,1.351,837.72,836.59,0.88733091]
[1766703583270,1.351,837.72,836.58,0.88733091]
[1766703585073,1.351,837.72,836.28,1.78433944]
[1766703585074,1.351,837.72,836.57,0.88733091]
[1766703585370,1.351,837.72,836.56,0.88733091]
[1766703589077,1.351,837.72,836.54,0.88733091]
[1766703590473,1.351,837.72,836.55,0.88733091]
[1766703591178,1.351,837.72,836.56,0.88733091]
[1766703593077,1.351,837.72,836.57,0.88733091]
[1766703599081,1.351,837.72,836.58,0.88733091]
[1766703599380,1.351,837.72,836.57,0.88733091]
[1766703600282,1.351,837.72,836.58,0.88733091]
[1766703600681,1.351,837.72,836.67,0.88733091]
[1766703600980,1.351,837.72,836.75,0.88733091]
[1766703601578,1.351,837.72,836.73,0.88733091]
[1766703601782,1.351,837.72,836.71,0.88733091]
[1766703601977,1.351,837.72,836.69,0.88733091]
[1766703602179,1.351,837.72,836.7,0.88733091]
[1766703602678,1.351,837.72,836.69,0.88733091]
[1766703602982,1.351,837.72,836.67,0.88733091]
[1766703603179,1.351,837.72,836.68,0.88733091]
[1766703604085,1.351,837.72,836.69,0.88733091]
[1766703605181,1.351,837.72,836.7,0.88733091]
[1766703605582,1.351,837.72,836.69,0.88733091]
[1766703606081,1.351,837.72,836.66,0.88733091]
[1766703606280,1.351,837.72,836.63,0.88733091]
[1766703606482,1.351,837.72,836.62,0.88733091]
[1766703606683,0.8803777,837.55,836.4,0.88733091]
[1766703607081,0.8803777,837.53,836.4,0.88733091]
[1766703607284,0.8803777,837.58,836.46,0.88733091]
[1766703607485,0.8803777,837.59,836.45,0.88733091]
[1766703607983,0.8803777,837.61,836.48,0.88733091]
[1766703608186,0.8803777,837.6,836.49,0.88733091]
[1766703608881,0.8803777,837.6,836.48,0.88733091]
[1766703609082,0.8803777,837.59,836.48,0.88733091]
[1766703609282,0.8803777,837.57,836.48,0.88733091]
[1766703609487,2.52579375,837.72,835.64,0.008777]
[1766703609488,0.8803777,837.58,836.49,0.88733091]
[1766703610094,0.8803777,837.57,836.5,0.88733091]
[1766703610292,0.8803777,837.56,836.5,0.88733091]
[1766703610496,0.8803777,837.56,836.49,0.88733091]
[1766703610696,0.8803777,837.57,836.5,0.88733091]
[1766703611097,0.8803777,837.55,836.52,0.88733091]
[1766703612098,0.8803777,837.53,836.54,0.88733091]
[1766703613098,0.8803777,837.51,836.57,0.88733091]
[1766703613299,0.8803777,837.51,836.56,0.88733091]
[1766703614194,0.8803777,837.5,836.57,0.88733091]
[1766703615495,0.8803777,837.5,836.56,0.88733091]
[1766703615698,0.8803777,837.5,836.26,1.78433944]
[1766703615699,0.8803777,837.54,836.61,0.88733091]
[1766703615900,0.8803777,837.56,836.62,0.88733091]
[1766703616700,0.8803777,837.58,836.64,0.88733091]
[1766703617197,0.8803777,837.58,836.63,0.88733091]
[1766703622899,0.8803777,837.57,836.63,0.88733091]
[1766703623100,0.8803777,837.57,836.62,0.88733091]
[1766703623604,0.8803777,837.56,836.61,0.88733091]
[1766703625507,0.8803777,837.48,836.53,0.88733091]
[1766703626407,0.8803777,837.49,836.53,0.88733091]
[1766703627207,0.88529135,837.49,836.53,0.89363109]
[1766703628808,0.939,837.48,836.53,0.89363109]
[1766703629108,0.939,837.48,835.77,54.90747965]
[1766703629109,1.82429135,837.48,836.51,0.89363109]
[1766703630707,1.82429135,837.48,836.5,0.89363109]
[1766703630912,0.88529135,837.43,836.46,0.89363109]
[1766703631309,0.88529135,837.42,836.44,0.89363109]
[1766703632006,0.88529135,837.39,836.41,0.89363109]
[1766703632210,0.88529135,837.4,836.41,0.89363109]
[1766703632511,0.88529135,837.36,836.36,0.89363109]
[1766703633506,0.88529135,837.37,836.35,0.89363109]
[1766703634413,0.88529135,837.28,836.25,0.89363109]
[1766703635207,0.88529135,837.28,836.24,0.89363109]
[1766703635511,0.88529135,837.29,836.23,0.89363109]
[1766703636312,0.939,837.48,835.39,0.00955279]
[1766703636313,0.88529135,837.3,836.22,0.89363109]
[1766703637313,0.88529135,837.31,836.22,0.89363109]
[1766703638314,0.88529135,837.26,836.16,0.89363109]
[1766703638515,0.88529135,837.27,836.15,0.89363109]
[1766703639418,0.88529135,837.28,836.14,0.89363109]
[1766703641419,0.88529135,837.29,836.13,0.89363109]
[1766703642516,0.88529135,837.3,836.13,0.89363109]
[1766703643215,1.237,837.29,836.13,0.89363109]
[1766703643420,1.237,837.29,836.12,0.89363109]
[1766703646620,1.237,837.29,836.13,0.89363109]
[1766703647417,1.237,837.29,836.14,0.89363109]
[1766703649325,1.237,837.29,836.15,0.89363109]
[1766703650422,2.12229135,837.29,836.16,0.89363109]
[1766703653426,0.88529135,837.28,836.15,0.89363109]
[1766703654331,0.88529135,837.28,836.14,0.89363109]
[1766703658531,0.88529135,837.24,836.14,0.89363109]
[1766703658729,0.88529135,837.18,836.04,0.89363109]
[1766703659233,0.88529135,837.16,836.02,0.89363109]
[1766703659528,0.88529135,837.17,836.02,0.89363109]
[1766703661533,0.88529135,837.16,836.01,0.89363109]
[1766703663337,0.88529135,837.15,836.0,0.89363109]
[1766703663539,0.88529135,837.07,835.93,0.89363109]
[1766703664337,0.88529135,837.06,835.93,0.89363109]